bitfinex-derivatives/quotes_BNBF0:USTF0_20250315
["timestamp","ask_amount","ask_price","bid_price","bid_amount"]
[1742074812821,0.01615118,619.15,618.75,0.90827155]
[1742074813024,0.01615118,619.15,618.73,1.02806155]
[1742074813224,0.01615118,619.15,618.76,1.02806155]
[1742074813424,0.01615118,619.15,618.77,1.93594166]
[1742074813725,0.01615118,619.15,618.78,0.90788011]
[1742074813926,0.01615118,619.15,618.79,0.90788011]
[1742074814227,0.01615118,619.15,618.8,0.90788011]
[1742074814426,0.01615118,619.15,618.81,0.90788011]
[1742074814625,0.01615118,619.15,618.26,0.28106222]
[1742074814828,0.01615118,619.15,618.59,0.90739321]
[1742074815027,0.01615118,619.15,618.6,0.90739321]
[1742074815229,0.01615118,619.15,618.61,0.90739321]
[1742074815426,0.01615118,619.15,618.62,0.90739321]
[1742074815621,0.01615118,619.15,618.63,0.90739321]
[1742074815825,0.01615118,619.15,618.64,0.90739321]
[1742074816023,0.01615118,619.15,618.65,0.90739321]
[1742074816221,0.01615118,619.15,618.66,0.90739321]
[1742074816428,0.01615118,619.15,618.67,0.90739321]
[1742074816728,0.01615118,619.15,618.68,0.90739321]
[1742074816929,0.01615118,619.15,618.69,0.90739321]
[1742074817130,0.01615118,619.15,618.7,0.90739321]
[1742074817332,0.01615118,619.15,618.71,0.90739321]
[1742074817530,0.01615118,619.15,618.71,1.02705314]
[1742074818333,0.01615118,619.15,618.26,0.28107698]
[1742074818528,0.01615118,619.15,618.59,0.90661928]
[1742074818729,0.01615118,619.15,618.6,1.93283808]
[1742074818928,0.01615118,619.15,618.61,0.90661928]
[1742074819130,0.01615118,619.15,618.62,1.93283808]
[1742074819327,0.01615118,619.15,618.63,0.90661928]
[1742074819632,0.01615118,619.15,618.64,0.90661928]
[1742074819827,0.01615118,619.15,618.65,0.90661928]
[1742074820025,0.01615118,619.15,618.66,0.90661928]
[1742074820230,0.01615118,619.15,618.67,0.90661928]
[1742074820432,0.01615118,619.15,618.68,1.93283808]
[1742074820632,0.01615118,619.15,618.69,0.90661928]
[1742074820834,0.01615118,619.15,618.7,0.90661928]
[1742074821032,0.01615118,619.15,618.71,0.90661928]
[1742074821232,0.01615118,619.15,618.72,0.90661928]
[1742074821430,0.01615118,619.15,618.73,0.90661928]
[1742074821628,0.01615118,619.15,618.74,0.90554486]
[1742074821934,0.01615118,619.15,618.75,0.90554486]
[1742074822136,0.01615118,619.15,618.74,1.0262188]
[1742074822331,0.01615118,619.15,618.75,0.90537521]
[1742074822634,0.01615118,619.15,618.26,0.28107698]
[1742074822934,0.01615118,619.15,618.59,0.90531266]
[1742074823134,0.01615118,619.15,618.6,0.90531266]
[1742074823333,0.01615118,619.15,618.61,0.90531266]
[1742074823534,0.01615118,619.15,618.62,0.90531266]
[1742074823736,0.01615118,619.15,618.63,0.90531266]
[1742074823929,0.01615118,619.15,618.64,0.90531266]
[1742074824132,0.01615118,619.15,618.65,1.92998286]
[1742074824332,0.01615118,619.15,618.66,0.90531266]
[1742074824528,0.01615118,619.15,618.67,0.90531266]
[1742074824735,0.01615118,619.15,618.68,0.90531266]
[1742074825033,0.01615118,619.15,618.69,0.90531266]
[1742074825235,0.01615118,619.15,618.7,0.90531266]
[1742074825435,0.01615118,619.15,618.71,0.90531266]
[1742074825728,0.01615118,619.15,618.72,0.90531266]
[1742074825935,0.01615118,619.15,618.73,1.92998286]
[1742074826135,0.01615118,619.15,618.73,1.0246702]
[1742074826531,0.01615118,619.15,618.26,0.2810486]
[1742074826735,0.01615118,619.15,618.59,0.90497992]
[1742074826934,0.01615118,619.15,618.6,0.90497992]
[1742074827130,0.01615118,619.15,618.61,0.90497992]
[1742074827436,0.01615118,619.15,618.62,0.90497992]
[1742074827736,0.01615118,619.15,618.63,0.90497992]
[1742074828036,0.01615118,619.15,618.64,0.90497992]
[1742074828335,0.01615118,619.15,618.65,0.90497992]
[1742074828537,0.01615118,619.15,618.66,0.90497992]
[1742074828736,0.01615118,619.15,618.67,0.90497992]
[1742074829036,0.01615118,619.15,618.68,0.90497992]
[1742074829336,0.01615118,619.15,618.69,0.90497992]
[1742074829535,0.01615118,619.15,618.7,0.90497992]
[1742074829736,0.01615118,619.15,618.71,0.90497992]
[1742074829937,0.01615118,619.15,618.26,0.28104633]
[1742074830137,0.01615118,619.15,618.59,0.90479403]
[1742074830339,0.01615118,619.15,618.6,0.90479403]
[1742074830636,0.01615118,619.15,618.26,0.28104633]
[1742074830637,0.01615118,619.15,618.61,0.90479403]
[1742074830830,0.01615118,619.15,618.62,1.92881237]
[1742074831031,0.01615118,619.15,618.63,0.90479403]
[1742074831231,0.01615118,619.15,618.64,0.90479403]
[1742074831432,0.01615118,619.15,618.65,0.90479403]
[1742074831632,0.01615118,619.15,618.66,0.90479403]
[1742074831937,0.01615118,619.15,618.67,0.90479403]
[1742074832133,0.01615118,619.15,618.68,0.90479403]
[1742074832337,0.01615118,619.15,618.69,0.90448972]
[1742074832532,0.01615118,619.15,618.69,1.02401834]
[1742074832735,0.01615118,619.15,618.7,0.90452155]
[1742074832932,0.01615118,619.15,618.69,1.02401834]
[1742074833133,0.01615118,619.15,618.7,0.90449501]
[1742074833334,0.01615118,619.15,618.71,0.90449501]
[1742074833532,0.01615118,619.15,618.7,1.02401834]
[1742074834640,0.01615118,619.15,618.26,0.28104633]
[1742074834835,0.01615118,619.15,618.59,0.904464]
[1742074835039,0.01615118,619.15,618.6,0.904464]
[1742074835239,0.01615118,619.15,618.61,0.904464]
[1742074835435,0.01615118,619.15,618.62,0.904464]
[1742074835639,0.01615118,619.15,618.63,0.904464]
[1742074835844,0.01615118,619.15,618.64,0.904464]
[1742074836341,0.01615118,619.15,618.65,1.0237329]
[1742074837043,0.01615118,619.15,618.59,1.0237329]
[1742074837241,0.01615118,619.15,618.6,0.90436228]
[1742074837539,0.01615118,619.15,618.61,0.90436228]
[1742074837741,0.01615118,619.15,618.62,0.90436228]
[1742074837941,0.01615118,619.15,618.63,0.90436228]
[1742074838134,0.01615118,619.15,618.64,0.90436228]
[1742074838338,0.01615118,619.15,618.63,1.0237329]
[1742074838642,0.01615118,619.15,618.64,1.92801547]
[1742074838941,0.01615118,619.15,618.64,1.0237329]
[1742074839141,0.01615118,619.15,618.21,0.28111898]
[1742074839344,0.01615118,619.15,618.59,0.90424387]
[1742074839540,0.01615118,619.15,618.6,0.90424387]
[1742074840146,0.01615118,619.15,618.61,1.02351576]
[1742074840349,0.01615118,619.15,618.62,0.90424387]
[1742074840748,0.01615118,619.15,618.63,1.02351576]
[1742074840949,0.01615118,619.15,618.64,0.90424387]
[1742074841646,0.01615118,619.15,618.63,1.02351576]
[1742074841850,0.01615118,619.15,618.64,0.90425652]
[1742074842050,0.01615118,619.15,618.59,1.02351576]
[1742074842252,0.01615118,619.15,618.6,0.90426573]
[1742074842448,0.01615118,619.15,618.61,0.90426573]
[1742074842754,0.01615118,619.15,618.62,0.90426573]
[1742074842955,0.01615118,619.15,618.63,0.90426573]
[1742074843654,0.01615118,619.15,618.64,0.90426573]
[1742074843849,0.01615118,619.15,618.1,1.19305793]
[1742074844055,0.01615118,619.15,618.59,0.90430288]
[1742074844252,0.01615118,619.15,618.6,0.90430288]
[1742074844452,0.01615118,619.15,618.61,0.90430288]
[1742074844757,0.01615118,619.15,618.62,0.90430288]
[1742074844958,0.01615118,619.15,618.61,1.02360234]
[1742074846756,0.01615118,619.15,618.62,0.90478182]
[1742074846953,0.01615118,619.15,618.63,0.90478182]
[1742074847158,0.01615118,619.15,618.61,1.02360234]
[1742074847361,0.01615118,619.15,618.62,0.90532094]
[1742074847560,0.01615118,619.15,618.63,0.90532094]
[1742074848162,0.01615118,619.15,618.64,1.02360234]
[1742074848360,0.01615118,619.15,618.65,0.90532094]
[1742074849260,0.01615118,619.15,618.66,1.02360234]
[1742074849456,0.01615118,619.15,618.67,0.90532094]
[1742074850265,0.01615118,619.15,618.68,1.02360234]
[1742074850462,0.01615118,619.15,618.69,0.90532094]
[1742074851256,0.01615118,619.15,618.7,1.02360234]
[1742074851463,0.01615118,619.15,618.71,0.90532094]
[1742074852164,0.01615118,619.15,618.72,0.90532094]
[1742074852363,0.01615118,619.15,618.73,0.90532094]
[1742074852665,0.01615118,619.15,618.74,0.90532094]
[1742074852865,0.01615118,619.15,618.75,0.90532094]
[1742074853159,0.01615118,619.15,618.76,0.90532094]
[1742074853364,0.01615118,619.15,618.77,1.93243907]
[1742074853664,0.01615118,619.15,618.77,1.02711813]
[1742074854062,0.01615118,619.15,618.24,0.28105882]
[1742074854258,0.01615118,619.15,618.59,0.90810982]
[1742074854463,0.01615118,619.15,618.6,1.93658909]
[1742074854766,0.01615118,619.15,618.61,0.90810982]
[1742074854964,0.01615118,619.15,618.62,0.90810982]
[1742074855266,0.01615118,619.15,618.63,0.90810982]
[1742074855464,0.01615118,619.15,618.64,0.90810982]
[1742074855659,0.01615118,619.15,618.65,0.90810982]
[1742074855860,0.01615118,619.15,618.66,0.90810982]
[1742074856059,0.01615118,619.15,618.67,0.90810982]
[1742074856258,0.01615118,619.15,618.68,0.90810982]
[1742074856458,0.01615118,619.15,618.69,1.93658909]
[1742074856663,0.01615118,619.15,618.7,0.90810982]
[1742074856859,0.01615118,619.15,618.71,0.90810982]
[1742074857065,0.01615118,619.15,618.72,0.90810982]
[1742074857264,0.01615118,619.15,618.73,0.90810982]
[1742074857468,0.01615118,619.15,618.74,0.90810982]
[1742074857662,0.01615118,619.15,618.75,0.90810982]
[1742074857867,0.01615118,619.15,618.74,1.02847927]
[1742074857868,0.01615118,619.15,618.76,0.90810982]
[1742074858064,0.01615118,619.15,618.77,0.90810982]
[1742074858263,0.01615118,619.15,618.78,0.90810982]
[1742074858461,0.01615118,619.15,618.79,1.93658909]
[1742074858661,0.01615118,619.15,618.8,0.90810982]
[1742074858862,0.01615118,619.15,618.81,0.90810982]
[1742074859069,0.01615118,619.15,618.82,0.90810982]
[1742074859268,0.01615118,619.15,618.83,0.90810982]
[1742074859470,0.01615118,619.15,618.84,0.90810982]
[1742074859667,0.01615118,619.15,618.85,0.90810982]
[1742074859969,0.01615118,619.15,618.86,1.93658909]
[1742074860166,0.01615118,619.15,618.87,0.90810982]
[1742074860362,0.01615118,619.15,618.88,0.90810982]
[1742074860566,0.01615118,619.15,618.89,0.90810982]
[1742074860766,0.01615118,619.15,618.9,0.90810982]
[1742074861067,0.01615118,619.15,618.91,0.90810982]
[1742074861271,0.01615118,619.15,618.92,0.90810982]
[1742074861464,0.01615118,619.15,618.93,0.91241585]
[1742074861663,0.01615118,619.15,618.94,0.91243524]
[1742074861867,0.01615118,619.15,618.91,1.02847927]
[1742074861868,0.01615118,619.15,618.95,0.91236478]
[1742074862064,0.01615118,619.15,618.96,0.91236478]
[1742074862268,0.01615118,619.15,618.97,0.91236478]
[1742074862467,0.01615118,619.15,618.97,1.03237046]
[1742074862668,0.01615118,619.15,618.98,0.91232005]
[1742074862965,0.01615118,619.15,618.99,0.91235111]
[1742074863164,0.01615118,619.15,619.0,0.91229524]
[1742074863365,0.01615118,619.15,619.01,0.91229524]
[1742074863568,0.01615118,619.15,618.29,0.28100548]
[1742074863770,0.01615118,619.15,618.59,0.91231173]
[1742074863967,0.01615118,619.15,618.6,0.91231173]
[1742074864167,0.01615118,619.15,618.29,0.28100548]
[1742074864168,0.01615118,619.15,618.61,1.94490231]
[1742074864378,0.01615118,619.15,618.62,0.91231173]
[1742074864672,0.01615118,619.15,618.63,0.91231173]
[1742074864971,0.01615118,619.15,618.64,0.91231173]
[1742074865171,0.01615118,619.15,618.65,0.91231173]
[1742074865365,0.01615118,619.15,618.66,0.91231173]
[1742074865565,0.01615118,619.15,618.67,0.91231173]
[1742074865765,0.01615118,619.15,618.68,0.91231173]
[1742074865970,0.01615118,619.15,618.69,0.91231173]
[1742074866170,0.01615118,619.15,618.68,1.03259058]
[1742074866171,0.01615118,619.15,618.7,0.91231173]
[1742074866371,0.01615118,619.15,618.71,0.91231173]
[1742074866570,0.01615118,619.15,618.72,0.91220238]
[1742074866771,0.01615118,619.15,618.73,0.91220238]
[1742074866973,0.01615118,619.15,618.74,0.91220238]
[1742074867165,0.01615118,619.15,618.7,1.03259058]
[1742074867166,0.01615118,619.15,618.75,0.91220238]
[1742074867367,0.01615118,619.15,618.76,0.91220238]
[1742074867568,0.01615118,619.15,618.77,0.91220238]
[1742074867777,0.01615118,619.15,618.78,0.91220238]
[1742074867969,0.01615118,619.15,618.79,0.91220238]
[1742074868169,0.01615118,619.15,618.8,0.91220238]
[1742074868373,0.01615118,619.15,618.81,0.91220238]
[1742074868574,0.01615118,619.15,618.82,1.94479296]
[1742074868774,0.01615118,619.15,618.83,0.91220238]
[1742074868974,0.01615118,619.15,618.84,0.91220238]
[1742074869175,0.01615118,619.15,618.85,0.91220238]
[1742074869375,0.01615118,619.15,618.86,0.91220238]
[1742074869676,0.01615118,619.15,618.87,0.91220238]
[1742074869874,0.01615118,619.15,618.88,0.91220238]
[1742074870075,0.01615118,619.15,618.89,0.91220238]
[1742074870275,0.01615118,619.15,618.9,0.91220238]
[1742074870474,0.01615118,619.15,618.91,0.91220238]
[1742074870676,0.01615118,619.15,618.92,0.91220238]
[1742074870872,0.01615118,619.15,618.93,0.91220238]
[1742074871173,0.01615118,619.15,618.94,1.94479296]
[1742074871479,0.01615118,619.15,618.95,0.91220238]
[1742074871777,0.01615118,619.15,618.96,0.91220238]
[1742074872081,0.01615118,619.15,618.97,0.91220238]
[1742074872277,0.01615118,619.15,618.98,0.91220238]
[1742074872474,0.01615118,619.15,618.99,0.91220238]
[1742074872675,0.01615118,619.15,619.0,0.91192001]
[1742074872874,0.01615118,619.15,618.3,0.2809896]
[1742074873175,0.01615118,619.15,618.59,0.91192133]
[1742074873480,0.01615118,619.15,618.6,0.91192133]
[1742074873779,0.01615118,619.15,618.61,0.91192133]
[1742074873980,0.01615118,619.15,618.62,0.91192133]
[1742074874180,0.01615118,619.15,618.63,0.91192133]
[1742074874375,0.01615118,619.15,618.64,0.91192133]
[1742074874579,0.01615118,619.15,618.65,0.91176615]
[1742074874879,0.01615118,619.15,618.66,0.91176615]
[1742074875079,0.01615118,619.15,618.67,0.91176615]
[1742074875282,0.01615118,619.15,618.68,0.91176615]
[1742074875479,0.01615118,619.15,618.69,0.91176615]
[1742074875683,0.01615118,619.15,618.66,1.03199688]
[1742074875684,0.01615118,619.15,618.7,0.91176615]
[1742074875983,0.01615118,619.15,618.71,0.91176615]
[1742074876178,0.01615118,619.15,618.72,0.91176615]
[1742074876383,0.01615118,619.15,618.73,0.91176615]
[1742074876586,0.01615118,619.15,618.74,0.91176615]
[1742074876781,0.01615118,619.15,618.71,1.03199688]
[1742074876782,0.01615118,619.15,618.75,0.91176615]
[1742074876981,0.01615118,619.15,618.76,0.91176615]
[1742074877182,0.01615118,619.15,618.58,6.578]
[1742074877183,0.01615118,619.15,618.77,1.94376303]
[1742074877379,0.01615118,619.15,618.78,0.91176615]
[1742074877585,0.01615118,619.15,618.79,0.91176615]
[1742074877778,0.01615118,619.15,618.8,0.91176615]
[1742074877984,0.01615118,619.15,618.81,0.91176615]
[1742074878184,0.01615118,619.15,618.82,0.91176615]
[1742074878479,0.01615118,619.15,618.83,0.91176615]
[1742074878683,0.01615118,619.15,618.84,0.91176615]
[1742074878880,0.01615118,619.15,618.85,0.91176615]
[1742074879080,0.01615118,619.15,618.86,0.91176615]
[1742074879284,0.01615118,619.15,618.87,0.91176615]
[1742074879485,0.01615118,619.15,618.88,0.91176615]
[1742074879684,0.01615118,619.15,618.89,0.91176615]
[1742074879885,0.01615118,619.15,618.87,1.03199688]
[1742074879886,0.01615118,619.15,618.9,0.91176615]
[1742074880086,0.01615118,619.15,618.91,0.91176615]
[1742074880382,0.01615118,619.15,618.91,1.03199688]
[1742074880588,0.01615118,619.15,618.92,0.91198689]
[1742074880885,0.01615118,619.15,618.93,0.91198689]
[1742074881087,0.01615118,619.15,618.94,0.91198689]
[1742074881280,0.01615118,619.15,618.95,0.91198689]
[1742074881488,0.01615118,619.15,618.96,0.91198689]
[1742074881789,0.01615118,619.15,618.97,0.91198689]
[1742074882087,0.01615118,619.15,618.98,0.91198689]
[1742074882287,0.01615118,619.15,618.99,0.91198689]
[1742074882587,0.01615118,619.15,618.58,6.578]
[1742074882786,0.01615118,619.15,618.59,0.91189347]
[1742074882986,0.01615118,619.15,618.6,0.91189347]
[1742074883185,0.01615118,619.15,618.61,0.91189347]
[1742074883381,0.01615118,619.15,618.59,1.03223408]
[1742074883382,0.01615118,619.15,618.62,0.91189347]
[1742074883589,0.01615118,619.15,618.63,0.91189347]
[1742074883787,0.01615118,619.15,618.64,0.91189347]
[1742074883983,0.01615118,619.15,618.65,0.91189347]
[1742074884182,0.01615118,619.15,618.66,0.91189347]
[1742074884487,0.01615118,619.15,618.67,0.91189347]
[1742074884682,0.01615118,619.15,618.68,0.91189347]
[1742074884885,0.01615118,619.15,618.69,0.91189347]
[1742074885082,0.01615118,619.15,618.7,0.91189347]
[1742074885381,0.01615118,619.15,618.71,0.91189347]
[1742074885688,0.01615118,619.15,618.72,1.94412755]
[1742074885884,0.01615118,619.15,618.73,0.91189347]
[1742074886084,0.01615118,619.15,618.74,0.91189347]
[1742074886287,0.01615118,619.15,618.75,0.91189347]
[1742074886487,0.01615118,619.15,618.76,0.91189347]
[1742074886687,0.01615118,619.15,618.77,0.91189347]
[1742074886888,0.01615118,619.15,618.78,0.91189347]
[1742074887089,0.01615118,619.15,618.79,0.91189347]
[1742074887288,0.01615118,619.15,618.8,0.91189347]
[1742074887482,0.01615118,619.15,618.81,0.91189347]
[1742074887683,0.01615118,619.15,618.82,0.91189347]
[1742074887884,0.01615118,619.15,618.83,0.91189347]
[1742074888085,0.01615118,619.15,618.84,0.91189347]
[1742074888390,0.01615118,619.15,618.85,0.91189347]
[1742074888591,0.01615118,619.15,618.86,0.91189347]
[1742074888793,0.01615118,619.15,618.87,0.91189347]
[1742074888994,0.01615118,619.15,618.88,0.91189347]
[1742074889192,0.01615118,619.15,618.89,0.91189347]
[1742074889493,0.01615118,619.15,618.9,1.94412755]
[1742074889693,0.01615118,619.15,618.91,0.91189347]
[1742074889888,0.01615118,619.15,618.92,0.91189347]
[1742074890195,0.01615118,619.15,618.9,1.03223408]
[1742074890196,0.01615118,619.15,618.93,0.91189347]
[1742074890387,0.01615118,619.15,618.94,0.91189347]
[1742074890587,0.01615118,619.15,618.95,0.91189347]
[1742074890791,0.01615118,619.15,618.96,0.91189347]
[1742074890994,0.01615118,619.15,618.97,0.91189347]
[1742074891193,0.01615118,619.15,618.98,0.91189347]
[1742074891392,0.01615118,619.15,618.98,1.03223408]
[1742074891991,0.01615118,619.15,618.58,6.578]
[1742074892189,0.01615118,619.15,618.59,0.91194884]
[1742074892388,0.01615118,619.15,618.6,0.91194884]
[1742074892591,0.01615118,619.15,618.61,0.91194884]
[1742074892796,0.01615118,619.15,618.62,0.91194884]
[1742074892995,0.01615118,619.15,618.63,0.91194884]
[1742074893189,0.01615118,619.15,618.64,0.91194884]
[1742074893389,0.01615118,619.15,618.65,0.91194884]
[1742074893590,0.01615118,619.15,618.66,0.91194884]
[1742074893795,0.01615118,619.15,618.67,0.91194884]
[1742074894091,0.01615118,619.15,618.67,1.03220067]
[1742074894294,0.01615118,619.15,618.68,0.91190776]
[1742074894495,0.01615118,619.15,618.69,0.91190776]
[1742074894696,0.01615118,619.15,618.7,0.91190776]
[1742074894892,0.01615118,619.15,618.71,0.91190776]
[1742074895113,0.01615118,619.15,618.72,0.91190776]
[1742074895298,0.01615118,619.15,618.73,0.91190776]
[1742074895596,0.01615118,619.15,618.74,0.91190776]
[1742074895797,0.01615118,619.15,618.75,0.91190776]
[1742074895997,0.01615118,619.15,618.76,0.91190776]
[1742074896298,0.01615118,619.15,618.77,0.91190776]
[1742074896493,0.01615118,619.15,618.78,0.9121375]
[1742074896695,0.01615118,619.15,618.79,0.9121375]
[1742074896894,0.01615118,619.15,618.78,1.03241074]
[1742074896895,0.01615118,619.15,618.8,0.9121375]
[1742074897096,0.01615118,619.15,618.81,0.9121375]
[1742074897395,0.01615118,619.15,618.82,0.9121375]
[1742074897595,0.01615118,619.15,618.83,0.9121375]
[1742074897898,0.01615118,619.15,618.84,0.9121375]
[1742074898196,0.01615118,619.15,618.85,0.9121375]
[1742074898397,0.01615118,619.15,618.86,0.9121375]
[1742074898592,0.01615118,619.15,618.87,0.9121375]
[1742074898796,0.01615118,619.15,618.83,1.03241074]
[1742074898994,0.01615118,619.15,618.84,0.91273803]
[1742074899196,0.01615118,619.15,618.85,0.91273803]
[1742074899397,0.01615118,619.15,618.86,0.91273803]
[1742074899700,0.01615118,619.15,618.58,6.578]
[1742074899898,0.01615118,619.15,618.59,0.91276557]
[1742074900097,0.01615118,619.15,618.6,0.91276557]
[1742074900292,0.01615118,619.15,618.61,0.91276557]
[1742074900497,0.01615118,619.15,618.62,0.91276557]
[1742074900691,0.01615118,619.15,618.63,0.91276557]
[1742074900896,0.01615118,619.15,618.64,0.91276557]
[1742074901194,0.01615118,619.15,618.65,0.91276557]
[1742074901398,0.01615118,619.15,618.66,0.91276557]
[1742074901693,0.01615118,619.15,618.67,0.91276557]
[1742074901894,0.01615118,619.15,618.68,0.91276557]
[1742074902094,0.01615118,619.15,618.69,0.91276557]
[1742074902301,0.01615118,619.15,618.7,0.91276557]
[1742074902502,0.01615118,619.15,618.71,0.91276557]
[1742074902702,0.01615118,619.15,618.72,0.91276557]
[1742074902897,0.01615118,619.15,618.73,0.91276557]
[1742074903101,0.01615118,619.15,618.74,0.91276557]
[1742074903295,0.01615118,619.15,618.75,0.91276557]
[1742074903500,0.01615118,619.15,618.76,0.91276557]
[1742074903696,0.01615118,619.15,618.77,0.91276557]
[1742074903900,0.01615118,619.15,618.78,0.91276557]
[1742074904099,0.01615118,619.15,618.79,0.91276557]
[1742074904299,0.01615118,619.15,618.76,1.03316621]
[1742074904497,0.01615118,619.15,618.77,0.91315355]
[1742074904700,0.01615118,619.15,618.8,1.03316621]
[1742074904898,0.01615118,619.15,618.81,0.91315355]
[1742074905102,0.01615118,619.15,618.82,0.91315355]
[1742074905305,0.01615118,619.15,618.83,0.91315355]
[1742074905503,0.01615118,619.15,618.84,0.91315355]
[1742074905703,0.01615118,619.15,618.82,1.03316621]
[1742074905704,0.01615118,619.15,618.85,0.91315355]
[1742074905904,0.01615118,619.15,618.86,0.91315355]
[1742074906203,0.01615118,619.15,618.82,1.03316621]
[1742074906404,0.01615118,619.15,618.83,0.91305993]
[1742074906604,0.01615118,619.15,618.84,0.91305993]
[1742074906802,0.01615118,619.15,618.85,0.91305993]
[1742074907104,0.01615118,619.15,618.58,6.578]
[1742074907708,0.01615118,619.15,618.59,0.9131517]
[1742074907907,0.01615118,619.15,618.58,6.578]
[1742074908708,0.01615118,619.15,618.59,0.91318027]
[1742074908905,0.01615118,619.15,618.58,6.578]
[1742074909411,0.01615118,619.15,618.84,1.03347536]
[1742074909602,0.01615118,619.15,618.85,0.91316363]
[1742074909805,0.01615118,619.15,618.86,0.91316363]
[1742074910002,0.01615118,619.15,618.85,1.03347536]
[1742074910204,0.01615118,619.15,618.86,0.91316171]
[1742074910408,0.01615118,619.15,618.85,1.03347536]
[1742074910711,0.01615118,619.15,618.86,0.91312834]
[1742074910911,0.01615118,619.15,618.58,6.578]
[1742074911212,0.01615118,619.15,618.59,0.91312917]
[1742074911408,0.01615118,619.15,618.6,0.91312917]
[1742074911609,0.01615118,619.15,618.61,0.91312917]
[1742074911810,0.01615118,619.15,618.62,0.91312917]
[1742074912006,0.01615118,619.15,618.63,0.91312917]
[1742074912212,0.01615118,619.15,618.64,0.91312917]
[1742074912412,0.01615118,619.15,618.65,0.91312917]
[1742074912609,0.01615118,619.15,618.66,0.91312917]
[1742074912810,0.01615118,619.15,618.67,0.91312917]
[1742074913113,0.01615118,619.15,618.68,0.91312917]
[1742074913313,0.01615118,619.15,618.68,1.0335047]
[1742074914015,0.01615118,619.15,618.58,6.578]
[1742074914214,0.01615118,619.15,618.59,0.9134302]
[1742074914415,0.01615118,619.15,618.6,0.9134302]
[1742074914716,0.01615118,619.15,618.61,0.9134302]
[1742074915012,0.01615118,619.15,618.62,0.91319884]
[1742074915217,0.01615118,619.15,618.6,1.03361773]
[1742074915517,0.01615118,619.15,618.58,6.578]
[1742074915717,0.01615118,619.15,618.59,0.91266851]
[1742074916016,0.01615118,619.15,618.58,6.578]
[1742074970573,0.01615118,619.15,618.59,0.91390964]
[1742074970773,0.01615118,619.15,618.58,5.511]
[1742074971373,0.01615118,619.15,618.59,0.91429566]
[1742074971575,0.01615118,619.15,618.58,5.511]
[1742074972070,0.01615118,619.15,618.59,0.91427669]
[1742074972269,0.01615118,619.15,618.6,0.91427669]
[1742074972474,0.01615118,619.15,618.61,0.91427669]
[1742074972674,0.01615118,619.15,618.62,0.91427669]
[1742074972977,0.01615118,619.15,618.63,0.91427669]
[1742074973276,0.01615118,619.15,618.64,0.91427669]
[1742074973468,0.01615118,619.15,618.65,0.91427669]
[1742074973672,0.01615118,619.15,618.58,5.511]
[1742074973869,0.01615118,619.15,618.59,0.91509981]
[1742074974075,0.01615118,619.15,618.6,0.91509981]
[1742074974276,0.01615118,619.15,618.61,0.91509981]
[1742074974576,0.01615118,619.15,618.62,0.91509981]
[1742074974776,0.01615118,619.15,618.63,0.91509981]
[1742074974972,0.01615118,619.15,618.64,0.91509981]
[1742074975171,0.01615118,619.15,618.65,0.91509981]
[1742074975375,0.01615118,619.15,618.58,6.967]
[1742074975576,0.01615118,619.15,618.59,0.91518258]
[1742074975875,0.01615118,619.15,618.6,0.91518258]
[1742074976075,0.01615118,619.15,618.61,0.91518258]
[1742074976276,0.01615118,619.15,618.62,0.91518258]
[1742074976477,0.01615118,619.15,618.63,0.91518258]
[1742074976670,0.01615118,619.15,618.64,0.91518258]
[1742074976873,0.01615118,619.15,618.63,1.03594302]
[1742074976874,0.01615118,619.15,618.65,0.91518258]
[1742074977074,0.01615118,619.15,618.58,6.967]
[1742074977273,0.01615118,619.15,618.59,0.91520086]
[1742074977470,0.01615118,619.15,618.6,1.95117731]
[1742074977671,0.01615118,619.15,618.61,0.91520086]
[1742074977873,0.01615118,619.15,618.62,0.91520086]
[1742074978074,0.01615118,619.15,618.58,6.967]
[1742074978271,0.01615118,619.15,618.59,0.91495347]
[1742074978471,0.01615118,619.15,618.6,0.91495347]
[1742074978776,0.01615118,619.15,618.61,0.91495347]
[1742074978977,0.01615118,619.15,618.62,0.91495347]
[1742074979172,0.01615118,619.15,618.61,1.0355912]
[1742074979378,0.01615118,619.15,618.62,0.91487619]
[1742074979579,0.01615118,619.15,618.58,6.967]
[1742074979779,0.01615118,619.15,618.59,0.91488643]
[1742074979974,0.01615118,619.15,618.6,0.91488643]
[1742074980180,0.01615118,619.15,618.61,0.91488643]
[1742074980373,0.01615118,619.15,618.58,6.967]
[1742074980374,0.01615118,619.15,618.62,0.91488643]
[1742074980578,0.01615118,619.15,618.58,6.967]
[1742074980777,0.01615118,619.15,618.59,1.95075411]
[1742074980977,0.01615118,619.15,618.6,0.91500119]
[1742074981179,0.01615118,619.15,618.61,0.91500119]
[1742074981383,0.01615118,619.15,618.62,0.91500119]
[1742074981575,0.01615118,619.15,618.58,6.967]
[1742074981777,0.01615118,619.15,618.59,0.91499596]
[1742074981974,0.01615118,619.15,618.6,1.95077755]
[1742074982179,0.01615118,619.15,618.61,0.91499596]
[1742074982379,0.01615118,619.15,618.62,0.91499596]
[1742074982581,0.01615118,619.15,618.6,1.03578159]
[1742074982780,0.01615118,619.15,618.61,0.91504406]
[1742074982980,0.01615118,619.15,618.62,0.91504406]
[1742074983181,0.01615118,619.15,618.58,6.967]